Cogmind - Beta 15 @@@ ROGUE MODE // 2025.06.30 @ 09:08:51 Player: CL-1C0 Result: Self-destructed Performance ------------- Evolutions (1) 500 Regions Visited (5) 1000 Robots Destroyed (7) 35 Value Destroyed (301) 301 Prototype IDs (21) 420 Alien Tech Used (0) 0 Bonus (500) 500 TOTAL SCORE: 2756 Bonus ------- Pacifist 200 Registered with UFD 300 Cogmind --------- Core Integrity 54/400 Matter 275/300 Energy 125/125 System Corruption 0% Temperature Cool (0) Movement Flying (40) Location -9/Scraptown Parts ------- > --- POWER (1) -------- Light Ion Engine > --- PROPULSION (3) --- Improved Flight Unit > --- UTILITY (3) ------ A0-MCA's Component Scanner > --- WEAPON (2) ------- Hammer > --- INVENTORY (5) ---- Deep Structural Scanner Hardened Light Armor Plating Heavy Assault Rifle Peak State ------------ > --- POWER ------------ Light Ion Engine > --- PROPULSION ------- Improved Flight Unit Improved Flight Unit > --- UTILITY ---------- Light Armor Plating A0-MCA's Component Scanner > --- WEAPON ----------- System Spiker Hammer > --- INVENTORY -------- Deep Structural Scanner Hardened Light Armor Plating Heavy Assault Rifle [Rating: 28] Favorites ----------- Power Cooled Ion Engine Engine Cooled Ion Engine Propulsion Light Treads Treads Light Treads Leg Aluminum Leg Wheel Compact Wheel Flight Unit Improved Flight Unit Utility Signal Interpreter Storage Large Storage Unit Processor Signal Interpreter Protection Light Armor Plating Weapon Hammer Energy Gun Medium Laser Ballistic Gun Heavy Assault Rifle Special Weapon Mining Laser Impact Weapon Hammer Build | -11 -10 -9 -9 -9 -9 ------- Run | Yrd Mat Mat Sto Rec Scr Slots Evolved 2 | . . 2 . . . Power . | . . . . . . Propulsion 1 | . . 1 . . . Utility 1 | . . 1 . . . Weapon . | . . . . . . Parts Attached 30 | . 5 . 15 . 10 Power 3 | . . . 2 . 1 Engine 3 | . . . 2 . 1 Core . | . . . . . . Reactor . | . . . . . . Propulsion 11 | . 2 . 6 . 3 Treads 5 | . . . 5 . . Leg . | . . . . . . Wheel 4 | . 2 . 1 . 1 Hover . | . . . . . . Flight 2 | . . . . . 2 Utility 6 | . 2 . 1 . 3 Device . | . . . . . . Storage 2 | . 1 . . . 1 Processor 2 | . 1 . . . 1 Hackware . | . . . . . . Protection 2 | . . . 1 . 1 Artifact . | . . . . . . Weapon 10 | . 1 . 6 . 3 Energy Gun 2 | . . . 2 . . Energy Cannon . | . . . . . . Ballistic Gun 4 | . . . 3 . 1 Ballistic Cannon . | . . . . . . Launcher . | . . . . . . Special Weapon 2 | . 1 . . . 1 Impact Weapon 2 | . . . 1 . 1 Slashing Weapon . | . . . . . . Piercing Weapon . | . . . . . . Special Melee Weapon . | . . . . . . Unidentified Prototypes 4 | . . . 3 . 1 Parts Lost 10 | . . . 7 . 3 Power 2 | . . . 2 . . Propulsion 3 | . . . 2 . 1 Utility 1 | . . . . . 1 Weapon 4 | . . . 3 . 1 Highest Loss Streak 7 | . . . 7 . 3 To Critical Strikes . | . . . . . . Average Backups 9 | . 6 7 10 11 10 Power . | . 1 1 1 . . Propulsion 4 | . 3 2 4 6 4 Utility 1 | . . 2 2 2 2 Weapon 3 | . 1 2 3 3 3 Tool/Special . | . . . . . . Unused Backups 13 | . 4 . 5 . 4 Power 2 | . 1 . 1 . . Propulsion 3 | . 2 . . . 1 Utility 3 | . . . . . 3 Weapon 5 | . 1 . 4 . . Tool/Special . | . . . . . . Average Slot Usage (%) 76 | . 89 77 81 93 73 Engine 10 | . 14 11 7 11 10 Treads 15 | . . . 14 33 17 Leg 1 | . 21 . . . . Wheel 8 | . 6 22 12 . 8 Flight 2 | . . . . . 3 Storage 9 | . 14 11 11 11 9 Processor 7 | . 4 11 11 11 6 Protection 6 | . . . 3 11 7 Energy Gun 3 | . 21 11 12 4 . Ballistic Gun 1 | . . . 3 . 1 Special Weapon 1 | . 6 11 4 . . Impact Weapon 7 | . . . 1 11 9 Peak Build Rating 28 | . 7 7 15 15 28 Average Rating 12 | . 6 7 10 13 12 On Entrance 8 | 6 6 7 7 15 12 Naked Turns 3 | . . . . . 3 Heaviest Build 210 | 14 28 28 36 36 210 Greatest Support 63 | 20 26 26 63 63 63 Greatest Overweight (x) 8 | . 1 1 1 . 8 Average Overweight (x) . | . . 1 . . 1 Largest Inventory Capacity 35 | . 15 15 15 15 35 Average Capacity 17 | . 9 15 15 15 18 Most Carried 15 | . 8 7 15 12 15 Average Carried 9 | . 6 7 11 11 10 Final Capacity 15 | 8 15 15 15 15 5 Final Carried 12 | 6 7 7 11 12 3 Class Distribution -------------------- 78% | Mutant 21% | Hauler-Mutant Dominant Class ---------------- Mutant | -10/Materials Mutant | -9/Materials Mutant | -9/Storage Mutant | -9/Recycling Mutant | -9/Scraptown Resources | -11 -10 -9 -9 -9 -9 ----------- Run | Yrd Mat Mat Sto Rec Scr Matter Collected 570 | 195 . . 217 . 158 Remotely . | . . . . . . Salvage Created 316 | . . . 316 . . Parts 15 | . . . 15 . . Haulers Intercepted . | . . . . . . Recyclers Shooed . | . . . . . . Parts Field Recycled . | . . . . . . Retrieved Matter . | . . . . . . Parts Self-Destructed . | . . . . . . Prevented . | . . . . . . Kills | -11 -10 -9 -9 -9 -9 ------- Run | Yrd Mat Mat Sto Rec Scr Combat Hostiles Destroyed 7 | . . . 7 . . Guns 7 | . . . 7 . . Classes Destroyed 2 | . . . 2 . . Grunt 4 | . . . 4 . . Sentry 3 | . . . 3 . . Best Kill Streak 6 | . . . 6 . . Combat Bots Only 6 | . . . 6 . . Max Kills in Single Turn 2 | . . . 2 . . Gunslinging 1 | . . . 1 . . Exploded . | . . . . . . Melee . | . . . . . . Uniques/NPCs Destroyed . | . . . . . . Combat | -11 -10 -9 -9 -9 -9 -------- Run | Yrd Mat Mat Sto Rec Scr Hostile Shots Fired 138 | . 1 . 130 . 7 Missed 28 | . . . 26 . 2 Hits 110 | . 1 . 104 . 5 Projectile 110 | . 1 . 104 . 5 Critical Strikes 9 | . . . 8 . 1 Damage Taken 1667 | . 15 . 1444 . 208 Core 346 | . . . 346 . . Absorbed by Shields . | . . . . . . Core Remaining (%) 100 | 100 100 . . . . Volleys Fired 28 | . 2 . 26 . . Largest 2 | . 1 . 2 . . Hottest 106 | . 100 . 106 . . Shots Fired 50 | . 2 . 48 . . Gun 46 | . . . 46 . . Cannon . | . . . . . . Launcher . | . . . . . . Special 4 | . 2 . 2 . . Kinetic 24 | . . . 24 . . Thermal 26 | . 2 . 24 . . Explosive . | . . . . . . Electromagnetic . | . . . . . . Robot Hit Streak 9 | . . . 9 . . Robot Miss Streak 2 | . . . 2 . . Penetration Max . | . . . . . . Secondary Targets 3 | . . . 3 . . Max Gunslinging Chain 1 | . . . 1 . . Shots Hit Robots 35 | . . . 35 . . Core Hits 14 | . . . 14 . . Critical Kills 1 | . . . 1 . . Critical Parts Destroyed . | . . . . . . Critical Strikes 1 | . . . 1 . . Destroy 1 | . . . 1 . . Melee Attacks 3 | . . . 2 . 1 Impact 3 | . . . 2 . 1 Slashing . | . . . . . . Piercing . | . . . . . . Sneak Attacks . | . . . . . . Combat Hostiles . | . . . . . . Follow-up Attacks . | . . . . . . Damage Inflicted 569 | . . . 569 . . Guns 569 | . . . 569 . . Cannons . | . . . . . . Explosions . | . . . . . . Melee . | . . . . . . Ramming . | . . . . . . Kinetic 333 | . . . 333 . . Thermal 236 | . . . 236 . . Explosive . | . . . . . . Electromagnetic . | . . . . . . Impact . | . . . . . . Slashing . | . . . . . . Piercing . | . . . . . . Highest Corruption 3 | . . . 3 3 . Average Corruption 2 | . . . 2 3 . Corruption Purged . | . . . . . . Corruption Blocked . | . . . . . . Effects 4 | . . . 3 1 . Message Errors 1 | . . . 1 . . Matter Fused 1 | . . . . 1 . Data Loss (minor) 1 | . . . 1 . . Misfires 1 | . . . 1 . . Overload Shots . | . . . . . . Overflow Damage . | . . . . . . Projectiles . | . . . . . . Explosions . | . . . . . . Melee . | . . . . . . Knockbacks . | . . . . . . Impact . | . . . . . . Kinetic . | . . . . . . Secondary . | . . . . . . Self-Inflicted Damage . | . . . . . . Shots . | . . . . . . Rammed . | . . . . . . Targets Rammed . | . . . . . . Kicked . | . . . . . . Crushed . | . . . . . . Highest Temperature 303 | . 20 . 303 . . Average Temperature 74 | . 10 . 82 . . Received Heat Transfer 696 | . 9 . 681 . 6 Siege Activations . | . . . . . . Martial Activations . | . . . . . . Shielding Activations . | . . . . . . Robots Disrupted . | . . . . . . Combat Hostiles . | . . . . . . Robots Corrupted . | . . . . . . Combat Hostiles . | . . . . . . Parts Fried . | . . . . . . Impact Corruptions . | . . . . . . Robots Melted . | . . . . . . Combat Hostiles . | . . . . . . Parts Melted 3 | . . . 3 . . Heat Transferred 629 | . . . 629 . . Parts Sabotaged . | . . . . . . Parts Stolen . | . . . . . . Parts Stripped . | . . . . . . Power Chain Reactions . | . . . . . . Alert | -11 -10 -9 -9 -9 -9 ------- Run | Yrd Mat Mat Sto Rec Scr Maximum Alert Level . | . . . . . . Low Security (%) 100 | . 100 100 100 100 . Level 1 . | . . . . . . Level 2 . | . . . . . . Level 3 . | . . . . . . Level 4 . | . . . . . . Level 5 . | . . . . . . High Security . | . . . . . . Max Security . | . . . . . . Peak Influence 120 | . 10 . 120 23 . Initial 23 | . . . . 23 . Average 24 | . 1 . 42 13 . Influence Increases 232 | . 21 . 211 . . Destroy 0b10 Robot/C 140 | . . . 140 . . Destroy Leader 40 | . . . 40 . . Successful Hack 5 | . 5 . . . . Disable Machine 45 | . 15 . 30 . . Destroy Structure 2 | . 1 . 1 . . Influence Decreases 232 | . 21 . 150 58 3 Entered New Map 41 | . . . . 38 3 Time Decay 161 | . 21 . 120 20 . Lost Part 30 | . . . 30 . . Squads Dispatched 2 | . . . 2 . . Investigation . | . . . . . . Extermination . | . . . . . . Reinforcement 1 | . . . 1 . . Assault . | . . . . . . Garrison 1 | . . . 1 . . Intercept . | . . . . . . Searches Triggered . | . . . . . . Construction Impeded . | . . . . . . Haulers Reinforced . | . . . . . . Active Scanning Responses . | . . . . . . Cargo Convoy Interrupts . | . . . . . . Stealth | -11 -10 -9 -9 -9 -9 --------- Run | Yrd Mat Mat Sto Rec Scr Distress Signals . | . . . . . . Communications Jammed . | . . . . . . Distress Signals . | . . . . . . Times Spotted 29 | . 2 . 17 . 10 Peak Tracking Total 16 | . 2 . 8 . 16 Tactical Retreats 1 | . . . . . 1 Traps | -11 -10 -9 -9 -9 -9 ------- Run | Yrd Mat Mat Sto Rec Scr Traps Triggered 4 | . . . 4 . . Indirectly . | . . . . . . Trap Hack Attempts . | . . . . . . Triggered . | . . . . . . Disarmed . | . . . . . . Reprogrammed . | . . . . . . Reused . | . . . . . . Traps Extracted . | . . . . . . Installed . | . . . . . . Triggered . | . . . . . . Machines | -11 -10 -9 -9 -9 -9 ---------- Run | Yrd Mat Mat Sto Rec Scr Machines Disabled 4 | . 1 . 2 . 1 Max in Single Turn 1 | . 1 . 1 . 1 Machines Repaired . | . . . . . . Machines Dismantled . | . . . . . . Machines Sabotaged . | . . . . . . Overloaded Fab Kills . | . . . . . . Hacking | -11 -10 -9 -9 -9 -9 --------- Run | Yrd Mat Mat Sto Rec Scr Machines Accessed 6 | . 1 . 2 . 3 Terminals 2 | . 1 . 1 . . Fabricators . | . . . . . . Repair Stations . | . . . . . . Recycling Units . | . . . . . . Scanalyzers . | . . . . . . Garrison Access 1 | . . . 1 . . Total Hacks 25 | . 2 . 3 . 20 Successful 21 | . 1 . . . 20 Failed 4 | . 1 . 3 . . Catastrophic 2 | . . . 2 . . Database Lockouts . | . . . . . . Manual 2 | . . . 2 . . Terminals 3 | . 2 . 1 . . Fabricators . | . . . . . . Repair Stations . | . . . . . . Recycling Units . | . . . . . . Scanalyzers . | . . . . . . Garrison Access 2 | . . . 2 . . Terminal Hacks 21 | . 1 . . . 20 Record 19 | . . . . . 19 Prototype ID Bank 1 | . 1 . . . . Proto ID Catalog 1 | . . . . . 1 Fabricator Hacks . | . . . . . . Repair Station Hacks . | . . . . . . Recycling Unit Hacks . | . . . . . . Scanalyzer . | . . . . . . Garrison Access Hacks . | . . . . . . Unauthorized Hacks . | . . . . . . Terminals . | . . . . . . Fabricators . | . . . . . . Repair Stations . | . . . . . . Recycling Units . | . . . . . . Scanalyzers . | . . . . . . Garrison Access . | . . . . . . Data Cores Recovered . | . . . . . . Used . | . . . . . . Hacking Detections 2 | . . . 2 . . Full Trace Events 1 | . . . 1 . . Feedback Events . | . . . . . . Feedback Blocked . | . . . . . . Robot Schematics Acquired . | . . . . . . Robots Built . | . . . . . . Authchips . | . . . . . . Time . | . . . . . . Total Robot Build Rating . | . . . . . . Part Schematics Acquired . | . . . . . . Parts Built . | . . . . . . Authchips . | . . . . . . Time . | . . . . . . Total Part Build Rating . | . . . . . . Parts Repaired . | . . . . . . Time . | . . . . . . Parts Recycled . | . . . . . . Recycled Matter . | . . . . . . Retrieved Matter . | . . . . . . Retrieved Components . | . . . . . . Parts Scanalyzed . | . . . . . . Part Schematics Acquired . | . . . . . . Parts Damaged . | . . . . . . Bothacking | -11 -10 -9 -9 -9 -9 ------------ Run | Yrd Mat Mat Sto Rec Scr Used RIF Installer . | . . . . . . Robots Hacked . | . . . . . . Non-combat . | . . . . . . Combat . | . . . . . . Robot Hacks Applied . | . . . . . . Relay Couplers Released . | . . . . . . Fabnet Peak Effective % . | . . . . . . Robots Rewired . | . . . . . . Allies Hacked . | . . . . . . Hacks Repelled . | . . . . . . Allies | -11 -10 -9 -9 -9 -9 -------- Run | Yrd Mat Mat Sto Rec Scr Total Allies . | . . . . . . Largest Group . | . . . . . . Highest-Rated Group . | . . . . . . Highest-Rated Ally . | . . . . . . Total Orders . | . . . . . . Ally Attacks . | . . . . . . Total Damage . | . . . . . . Kills . | . . . . . . Allies Corrupted . | . . . . . . Allies Melted . | . . . . . . Intel | -11 -10 -9 -9 -9 -9 ------- Run | Yrd Mat Mat Sto Rec Scr Active Infowar (turns) . | . . . . . . Robot Analysis Total . | . . . . . . Derelict Logs Recovered . | . . . . . . Drone Launches . | . . . . . . Drone Recoveries . | . . . . . . Exploration | -11 -10 -9 -9 -9 -9 ------------- Run | Yrd Mat Mat Sto Rec Scr Turns Passed 2317 | . 202 19 305 54 1737 Spaces Moved 1914 | 1 159 19 149 34 1552 Core 104 | . . . . . 104 Treads 590 | . . . 59 34 497 Legs 114 | 1 113 . . . . Wheels 558 | . 46 19 90 . 403 Hover . | . . . . . . Flight 548 | . . . . . 548 Fastest Speed 37 | 120 105 105 86 160 37 Average Speed 112 | 120 115 105 125 160 109 Slowest Speed 240 | 120 120 105 240 160 210 Overloaded Moves . | . . . . . . Propulsion Burnouts . | . . . . . . Robots Hopped . | . . . . . . Potential Cave-ins . | . . . . . . Cave-ins Triggered . | . . . . . . Exploration Rate (%) 27 | 2 34 4 33 10 80 Regions Visited 5 Branch Regions 3 Pre-discovered Areas 4 | . . . . . 4 Known Exits Taken 4 | . 1 1 1 1 . Unknown Exits Taken 1 | 1 . . . . . Scrap Searched 10 | . . . . . 10 Spaces Dug 2 | . 1 . 1 . . Terrain Destroyed 2 | . 1 . 1 . . Melee 1 | . . . 1 . . Projectile 1 | . 1 . . . . AOE . | . . . . . . Terrain Rammed . | . . . . . . Walls Destroyed . | . . . . . . Machines Disabled . | . . . . . . Actions | -11 -10 -9 -9 -9 -9 --------- Run | Yrd Mat Mat Sto Rec Scr Total 2023 | . 170 18 210 34 1591 Wait 3 | . . . 2 . 1 Move 1909 | . 158 18 148 33 1552 Hop . | . . . . . . Pick Up 17 | . 3 . 12 . 2 Fast Attach 17 | . 1 . 4 . 12 Attach 10 | . 2 . 5 . 3 Detach 6 | . . . . 1 5 Swap 9 | . 2 . 7 . . Drop 21 | . 2 . 4 . 15 Fire 28 | . 2 . 26 . . Melee 3 | . . . 2 . 1 Ram . | . . . . . . Kick . | . . . . . . Crush . | . . . . . . Escape Stasis . | . . . . . . Rewire . | . . . . . . Trap . | . . . . . . Miscellaneous . | . . . . . . Route ------- -11/Scrapyard -10/Materials -9/Materials -9/Storage -9/Recycling -9/Scraptown (discovered 1 exit: [*Fac]) History --------- Turn | Location | Event 1 | -11/Scrapyard | Discovered new exit (range 0) 1 | -11/Scrapyard | Entered Materials 129 | -10/Materials | Discovered new exit (range 3) 165 | -10/Materials | Identified exit to Materials 203 | -10/Materials | Entered another Materials area 203 | -9/Materials | Evolved 2 slots: Propulsion x1, Utility x1 203 | -9/Materials | Discovered new exit (range 7) 210 | -9/Materials | Identified exit to Storage 222 | -9/Materials | Entered Storage 310 | -9/Storage | Build established: Mutant 383 | -9/Storage | Garrison activated, responded to threat 387 | -9/Storage | Core integrity fell below 50% 410 | -9/Storage | Core integrity fell below 20% 437 | -9/Storage | Lost 7 parts (2p2n3w) 521 | -9/Storage | Used back door to open Recycling access 521 | -9/Storage | Discovered new exit (range 5) 526 | -9/Storage | Identified exit to Recycling 527 | -9/Storage | Entered Recycling 540 | -9/Recycling | Scanned before Scraplab entrance 563 | -9/Recycling | Entered Scraplab 576 | -9/Recycling | Discovered new exit (range 3) 578 | -9/Recycling | Identified exit to Scraptown 581 | -9/Recycling | Entered Scraptown 581 | -9/Scraptown | System corruption cleaned by C-Scrubber 600 | -9/Scraptown | Heard Great Nut preacher, LISTEN AND RECITE! 789 | -9/Scraptown | Visited UFD Registry 789 | -9/Scraptown | Registered with UFD as "Nanopod" 802 | -9/Scraptown | Visited Shadow of the Wyrm 818 | -9/Scraptown | Visited Cyclists 830 | -9/Scraptown | Entered Cyclist Reading Room 869 | -9/Scraptown | Visited CPS Storage 883 | -9/Scraptown | Visited Bundlers 995 | -9/Scraptown | Visited IN-MT5's Study 1061 | -9/Scraptown | Visited TADAMA 1414 | -9/Scraptown | Visited Curators Association 1434 | -9/Scraptown | Visited Scrap Suit Storage 1451 | -9/Scraptown | Visited Junk Cannon Lab 1819 | -9/Scraptown | Build established: Hauler-Mutant 1872 | -9/Scraptown | Visited Science Guys 1927 | -9/Scraptown | Visited Botcube Research 1962 | -9/Scraptown | Visited Scrapoid Pod Storage 2022 | -9/Scraptown | Visited Observation Area 2038 | -9/Scraptown | Visited DA-N13 Charitable Foundation 2040 | -9/Scraptown | Found DCF Scrap (29 items) 2051 | -9/Scraptown | Visited A0-MCA Data Center 2128 | -9/Scraptown | Discovered new exit (range 5) 2142 | -9/Scraptown | Visited Cartography Club 2160 | -9/Scraptown | Found Deep Structural Scanner 2165 | -9/Scraptown | Learned location of 3 exits from Proximity Caves 2165 | -9/Scraptown | Learned location of 2 exits from Lower Caves 2165 | -9/Scraptown | Learned location of 1 exit from Factory 2165 | -9/Scraptown | Learned 4 Armory zone layouts 2165 | -9/Scraptown | Learned 24 Proximity Caves zone layouts 2165 | -9/Scraptown | Learned 16 Proximity Caves zone layouts 2165 | -9/Scraptown | Learned 8 Proximity Caves zone layouts 2165 | -9/Scraptown | Learned 20 Upper Caves zone layouts 2165 | -9/Scraptown | Learned location of Proximity Caves (-6) 2165 | -9/Scraptown | Learned location of Upper Caves (-4) 2165 | -9/Scraptown | Learned location of Storage (-9) 2197 | -9/Scraptown | Given an A+ rating by A0-MCA 2200 | -9/Scraptown | Found A0-MCA's Component Scanner 2274 | -9/Scraptown | Attacked by Scraptown defenders 2277 | -9/Scraptown | Found System Spiker 2318 | -9/Scraptown | Self-destructed Last Messages --------------- 02311_ Component scanned: Graviton Reactor [Optimus]. 02311_ Component scanned: Exp. Power Shielding [Optimus]. 02311_ Component scanned: Active Sensor Suite [Optimus]. 02311_ Component scanned: Prc. Matter Filter [Optimus]. 02311_ Component scanned: Helical Railgun [Optimus]. 02311_ Optimus: "Hey you're that new member, I knew your registry entry had something suspicious about it!" 02315_ Component scanned: Siege Cannon [Triborg]. 02316_ Triborg activates siege mode. 02316_ Penetrated by Bolt. 02316_ Penetrated by Siege Slug. 02316_ Imp. Flight Unit destroyed. 02316_ System Spiker blasted off. 02316_ Siege Slug penetrates Machine. 02316_ Machine disabled. 02316_ Acquired System Spiker. 02318_ Penetrated by Siege Slug. 02318_ System Spiker destroyed. 02318_ Lgt. Armor Plating destroyed. 02318_ Knocked back. Map ----- +----------------------------------------------------+ | ?#X "#???#" #???#" """#?#" | | ?#" "#???# "#???#" #?#" | | ?# #???########## ##???###### #####?##### | | ### ##########???????##### ########### ########### | | #???????#"""" """"""""""" """"""""""" | | #???????#" | | #???????#" ! | | #???????#" /= | | == #???????#" | | #### #????####" | | ?# #???#"""" """""""""""""""""""""" | | # #???#"""" """""""""""""""""""""" | | # #???#"""" ""###### ############ | | #???#"""" ""#??? ?????????? | | # #???#"""" ""#?? ????????? | | # ###?#"""" ""#? "" "" ????????? | | ?# ""#"#"""" ""# "" "" ???????? | | ?# """"#"""" ""# " ? ???##### | | #??# ""#######" "" "" ??? | | ???# ###?????#" "" "" ???? | | ???# #########" ""# " ?????###### | | ???# ""# "" ??????????? | | ???# ""#? "" ""?????????? | | ???# ""#?? ?????????? | | ???# ""#??? ??????????? | | #### T @ ###### ############ | | T % """""""""""""""""""""" | | % """""""""""""""""""""" | | g | | | | | | #""""#" | | #????#" | | #????#"""""" """"""""""" """"""""" | | ###### ### ####????####### ########### ######### | | # #????????#" "#?# ## | | # #????????##"" ""##?## ### | | # #?????????#$" "]#??#" "## | | # #?????????#"" ""#??#"! !"###"# | | """"" # #????????#" "#?#"! "#???? | | """"" # #????????##"" ""##?#"! !"#???? | | """"" # #?????????#!" "=#??#" !"#???? | | # #?????????#"" ""#??####X ##???? | | ?? # #?????????" """ "?????#" "????? | | ?????##### #?????????### "&" ###?????? !"????? | | ?????????# #???????????#"###"#????????######???? | | ??######## #???????????##???##?????????????????? | | ??"""""""" #????????????????????#????########### | | ?""" """"" #?????????????????"??#"""##"""##"""## | | """ " "" #???????????"" ## ""##|""##" "##"""## | +----------------------------------------------------+ Best States ------------- Heat Dissipation 28 Energy Generation 14 Energy Capacity 280 Matter Stores 300 Matter Capacity 300 Sight Range 16 Terrain Scan Density 10 Armor Coverage 150 Evasion (%) 62 Recoil Reduction 3 Item Schematics ----------------- None Robot Schematics ------------------ None Fabricated ------------ Nothing Repaired ---------- Nothing Alien Tech Used ----------------- None Achievements -------------- None Challenges ------------ None Game ------ Seed LightningChargeProjector Manual? 0 Play Time 00:21:24 Cumulative 562.0 hours Start 2025.06.30 @ 07:45:23 End 2025.06.30 @ 09:08:51 Sessions 1 Manual Loads 0 Difficulty Rogue Special Mode None Game No. 679 Rogue 679 Adventurer 0 Explorer 0 Win Type - Total 20 Types 14/0/5/1/0/0/0/0/0/0 Lore% 86 Gallery% 83 Achievement% 83 Wizard Run 0 Options --------- Layout 0 ASCII 0 Keyboard 0 Movement Numpad Keybinds 0 Fullscreen 1 Font 18/SmallcapsGlow Map View 76x50 Zoom Use 0% Tactical HUD 1 Map Filters NONE Filters NONE Steam 1 RUN: 24ee8297-f9e3-4106-a7e3-947f0316e8a4